[Event "Titled Tuesday Blitz November 29 Late 2022"]
[White "Dimitrov, Atanas"]
[Black "Jimenez, Joaquin"]
[WhiteFideId "2901315"]
[BlackFideId "109860"]
[WhiteElo "2655"]
[BlackElo "2163"]
[Result "0-1"]
[Round "02"]
[TimeControl "180+1"]
[Date "2022.11.30"]
[WhiteClock "0:00:02"]
[BlackClock "0:00:25"]

1. Nf3 {[%clk 0:03:00]}  Nf6 {[%clk 0:02:59]} 2. c4 {[%clk 0:03:01]}  g6 {[%clk 0:02:59]} 3. g3 {[%clk 0:03:01]}  Bg7 {[%clk 0:02:58]} 4. Bg2 {[%clk 0:03:01]}  O-O {[%clk 0:02:58]} 5. O-O {[%clk 0:03:01]}  d6 {[%clk 0:02:59]} 6. Nc3 {[%clk 0:03:02]}  e5 {[%clk 0:02:59]} 7. b3 {[%clk 0:03:02]}  c5 {[%clk 0:02:57]} 8. Bb2 {[%clk 0:03:02]}  Nc6 {[%clk 0:02:56]} 9. e3 {[%clk 0:03:02]}  Bg4 {[%clk 0:02:56]} 10. h3 {[%clk 0:03:02]}  Be6 {[%clk 0:02:56]} 11. d4 {[%clk 0:03:00]}  exd4 {[%clk 0:02:54]} 12. exd4 {[%clk 0:03:01]}  Bf5 {[%clk 0:02:50]} 13. Ne2 {[%clk 0:02:52]}  Qc8 {[%clk 0:02:41]} 14. Kh2 {[%clk 0:02:50]}  Re8 {[%clk 0:02:37]} 15. a3 {[%clk 0:02:43]}  h5 {[%clk 0:02:21]} 16. Nf4 {[%clk 0:02:41]}  Be4 {[%clk 0:02:14]} 17. d5 {[%clk 0:02:18]}  Bxf3 {[%clk 0:02:10]} 18. Bxf3 {[%clk 0:02:19]}  Ne5 {[%clk 0:02:10]} 19. Bg2 {[%clk 0:02:18]}  Qd7 {[%clk 0:02:07]} 20. Re1 {[%clk 0:02:18]}  Neg4+ {[%clk 0:01:59]} 21. Kg1 {[%clk 0:02:17]}  Nh6 {[%clk 0:01:58]} 22. Qd2 {[%clk 0:02:16]}  Nf5 {[%clk 0:01:55]} 23. Nd3 {[%clk 0:02:10]}  Rxe1+ {[%clk 0:01:52]} 24. Rxe1 {[%clk 0:02:09]}  Re8 {[%clk 0:01:53]} 25. Rxe8+ {[%clk 0:02:08]}  Qxe8 {[%clk 0:01:51]} 26. b4 {[%clk 0:02:08]}  b6 {[%clk 0:01:48]} 27. b5 {[%clk 0:01:57]}  Nd7 {[%clk 0:01:34]} 28. Bxg7 {[%clk 0:01:54]}  Kxg7 {[%clk 0:01:34]} 29. Qc3+ {[%clk 0:01:51]}  Nd4 {[%clk 0:01:32]} 30. Qd2 {[%clk 0:01:41]}  Qe7 {[%clk 0:01:20]} 31. a4 {[%clk 0:01:35]}  Ne5 {[%clk 0:01:16]} 32. Qe3 {[%clk 0:01:15]}  f6 {[%clk 0:01:04]} 33. Kh1 {[%clk 0:01:09]}  Qf7 {[%clk 0:01:00]} 34. Nb2 {[%clk 0:00:59]}  Nf5 {[%clk 0:00:57]} 35. Qe2 {[%clk 0:00:57]}  Nd4 {[%clk 0:00:57]} 36. Qd1 {[%clk 0:00:55]}  Qe7 {[%clk 0:00:53]} 37. Kh2 {[%clk 0:00:54]}  Nf7 {[%clk 0:00:53]} 38. a5 {[%clk 0:00:51]}  Qe5 {[%clk 0:00:48]} 39. axb6 {[%clk 0:00:46]}  axb6 {[%clk 0:00:48]} 40. Na4 {[%clk 0:00:45]}  Qf5 {[%clk 0:00:43]} 41. Qd2 {[%clk 0:00:34]}  Ne5 {[%clk 0:00:41]} 42. Qf4 {[%clk 0:00:21]}  Qxf4 {[%clk 0:00:38]} 43. gxf4 {[%clk 0:00:22]}  Nxc4 {[%clk 0:00:38]} 44. Bf1 {[%clk 0:00:22]}  Nd2 {[%clk 0:00:36]} 45. Bg2 {[%clk 0:00:12]}  Nxb5 {[%clk 0:00:33]} 46. Nxb6 {[%clk 0:00:09]}  c4 {[%clk 0:00:31]} 47. f5 {[%clk 0:00:05]}  c3 {[%clk 0:00:29]} 48. fxg6 {[%clk 0:00:01]}  c2 {[%clk 0:00:28]} 49. Nc8 {[%clk 0:00:01]}  c1=Q {[%clk 0:00:26]} 50. Nxd6 {[%clk 0:00:02]}  Nxd6 {[%clk 0:00:25]} 0-1


[Site "https://www.chess.com"]

[Event "Titled Tuesday Blitz November 29 Late 2022"]
[White "Domingo Nunez, Ruben"]
[Black "Pap, Gyula"]
[WhiteFideId "22245570"]
[BlackFideId "725323"]
[WhiteElo "2406"]
[BlackElo "2519"]
[Result "0-1"]
[Round "02"]
[TimeControl "180+1"]
[Date "2022.11.30"]
[WhiteClock "0:00:05"]
[BlackClock "0:00:47"]

1. e4 {[%clk 0:02:57]}  e6 {[%clk 0:03:00]} 2. Nf3 {[%clk 0:02:56]}  d5 {[%clk 0:02:59]} 3. Nc3 {[%clk 0:02:56]}  Nf6 {[%clk 0:02:50]} 4. e5 {[%clk 0:02:57]}  Nfd7 {[%clk 0:02:50]} 5. d4 {[%clk 0:02:57]}  c5 {[%clk 0:02:51]} 6. dxc5 {[%clk 0:02:58]}  Nc6 {[%clk 0:02:51]} 7. Bf4 {[%clk 0:02:58]}  Bxc5 {[%clk 0:02:38]} 8. Bd3 {[%clk 0:02:59]}  f6 {[%clk 0:02:38]} 9. exf6 {[%clk 0:02:59]}  Nxf6 {[%clk 0:02:39]} 10. Bd2 {[%clk 0:03:00]}  O-O {[%clk 0:02:37]} 11. O-O {[%clk 0:03:00]}  e5 {[%clk 0:02:35]} 12. Bg5 {[%clk 0:02:59]}  e4 {[%clk 0:02:31]} 13. Bxf6 {[%clk 0:02:36]}  gxf6 {[%clk 0:02:19]} 14. Be2 {[%clk 0:02:09]}  exf3 {[%clk 0:02:17]} 15. Bxf3 {[%clk 0:02:10]}  d4 {[%clk 0:02:16]} 16. Ne4 {[%clk 0:02:10]}  Bb6 {[%clk 0:02:15]} 17. Re1 {[%clk 0:02:10]}  Bf5 {[%clk 0:02:09]} 18. Ng3 {[%clk 0:02:09]}  Bg6 {[%clk 0:02:09]} 19. h4 {[%clk 0:02:08]}  Kh8 {[%clk 0:02:04]} 20. h5 {[%clk 0:02:08]}  Bf7 {[%clk 0:02:04]} 21. Nf5 {[%clk 0:02:08]}  Ne5 {[%clk 0:01:57]} 22. Bxb7 {[%clk 0:02:08]}  Rb8 {[%clk 0:01:58]} 23. Be4 {[%clk 0:02:08]}  Bd5 {[%clk 0:01:50]} 24. Qe2 {[%clk 0:00:45]}  Rg8 {[%clk 0:01:24]} 25. Rad1 {[%clk 0:00:43]}  Bxe4 {[%clk 0:01:21]} 26. Qxe4 {[%clk 0:00:43]}  Rg4 {[%clk 0:01:22]} 27. Qe2 {[%clk 0:00:40]}  Qd5 {[%clk 0:01:17]} 28. Ne3 {[%clk 0:00:20]}  Nf3+ {[%clk 0:00:54]} 29. Kf1 {[%clk 0:00:16]}  Nh2+ {[%clk 0:00:55]} 30. Kg1 {[%clk 0:00:16]}  Qxh5 {[%clk 0:00:56]} 31. Nxg4 {[%clk 0:00:06]}  Nxg4 {[%clk 0:00:57]} 32. Qe6 {[%clk 0:00:06]}  d3 {[%clk 0:00:53]} 33. Qd6 {[%clk 0:00:04]}  Bxf2+ {[%clk 0:00:47]} 34. Kf1 {[%clk 0:00:05]}  Qh1# {[%clk 0:00:47]} 0-1


[Site "https://www.chess.com"]

[Event "Titled Tuesday Blitz November 29 Late 2022"]
[White "Donchenko, Alexander"]
[Black "Mohammed, Zozek Salah Mohammed"]
[WhiteFideId "24603295"]
[BlackFideId "4803361"]
[WhiteElo "2572"]
[BlackElo "2199"]
[Result "0-1"]
[Round "02"]
[TimeControl "180+1"]
[Date "2022.11.30"]
[WhiteClock "0:00:17"]
[BlackClock "0:00:07"]

1. Nf3 {[%clk 0:03:00]}  d5 {[%clk 0:02:59]} 2. g3 {[%clk 0:03:01]}  c6 {[%clk 0:02:59]} 3. Bg2 {[%clk 0:03:01]}  Nf6 {[%clk 0:03:00]} 4. O-O {[%clk 0:03:01]}  g6 {[%clk 0:03:00]} 5. b3 {[%clk 0:03:00]}  Bg7 {[%clk 0:03:01]} 6. Bb2 {[%clk 0:03:01]}  O-O {[%clk 0:03:01]} 7. c4 {[%clk 0:03:01]}  Bg4 {[%clk 0:02:56]} 8. d3 {[%clk 0:03:01]}  Nbd7 {[%clk 0:02:53]} 9. Nbd2 {[%clk 0:02:59]}  Re8 {[%clk 0:02:52]} 10. h3 {[%clk 0:02:59]}  Bxf3 {[%clk 0:02:51]} 11. Nxf3 {[%clk 0:03:00]}  e5 {[%clk 0:02:50]} 12. cxd5 {[%clk 0:03:00]}  cxd5 {[%clk 0:02:50]} 13. Rc1 {[%clk 0:03:00]}  Rc8 {[%clk 0:02:45]} 14. Rxc8 {[%clk 0:02:51]}  Qxc8 {[%clk 0:02:45]} 15. Qa1 {[%clk 0:02:51]}  e4 {[%clk 0:02:37]} 16. Nd4 {[%clk 0:02:46]}  exd3 {[%clk 0:02:34]} 17. exd3 {[%clk 0:02:45]}  Ne5 {[%clk 0:02:15]} 18. Nb5 {[%clk 0:02:39]}  Qb8 {[%clk 0:01:59]} 19. Rd1 {[%clk 0:02:33]}  a6 {[%clk 0:01:57]} 20. Nc3 {[%clk 0:02:30]}  Qd6 {[%clk 0:01:53]} 21. Qc1 {[%clk 0:02:04]}  d4 {[%clk 0:01:49]} 22. Ne4 {[%clk 0:01:52]}  Nxe4 {[%clk 0:01:48]} 23. Bxe4 {[%clk 0:01:53]}  Nc6 {[%clk 0:01:47]} 24. Ba3 {[%clk 0:01:51]}  Qd7 {[%clk 0:01:44]} 25. h4 {[%clk 0:01:47]}  Qh3 {[%clk 0:01:22]} 26. Bxc6 {[%clk 0:01:42]}  Rc8 {[%clk 0:01:19]} 27. Bxb7 {[%clk 0:01:36]}  Rxc1 {[%clk 0:01:18]} 28. Rxc1 {[%clk 0:01:37]}  Be5 {[%clk 0:01:11]} 29. Bc8 {[%clk 0:01:27]}  f5 {[%clk 0:01:11]} 30. Be6+ {[%clk 0:01:19]}  Kg7 {[%clk 0:01:08]} 31. Bd5 {[%clk 0:01:13]}  Bxg3 {[%clk 0:00:52]} 32. fxg3 {[%clk 0:01:08]}  Qxg3+ {[%clk 0:00:53]} 33. Bg2 {[%clk 0:01:07]}  Qe3+ {[%clk 0:00:43]} 34. Kh1 {[%clk 0:01:07]}  Qxd3 {[%clk 0:00:40]} 35. Rc7+ {[%clk 0:01:01]}  Kf6 {[%clk 0:00:35]} 36. Be7+ {[%clk 0:00:56]}  Ke6 {[%clk 0:00:32]} 37. Bg5 {[%clk 0:00:55]}  Qg3 {[%clk 0:00:22]} 38. Rc6+ {[%clk 0:00:45]}  Kd7 {[%clk 0:00:20]} 39. Rxa6 {[%clk 0:00:44]}  h6 {[%clk 0:00:18]} 40. Bf6 {[%clk 0:00:37]}  d3 {[%clk 0:00:14]} 41. Ra4 {[%clk 0:00:30]}  f4 {[%clk 0:00:13]} 42. Rd4+ {[%clk 0:00:26]}  Ke6 {[%clk 0:00:13]} 43. Bd8 {[%clk 0:00:23]}  Qe1+ {[%clk 0:00:12]} 44. Kh2 {[%clk 0:00:24]}  Qg3+ {[%clk 0:00:13]} 45. Kh1 {[%clk 0:00:23]}  f3 {[%clk 0:00:09]} 46. Bf1 {[%clk 0:00:21]}  Qf2 {[%clk 0:00:08]} 47. Bh3+ {[%clk 0:00:22]}  Ke5 {[%clk 0:00:07]} 48. Rxd3 {[%clk 0:00:21]}  Qe1+ {[%clk 0:00:06]} 49. Kh2 {[%clk 0:00:21]}  Qe2+ {[%clk 0:00:06]} 50. Kg3 {[%clk 0:00:20]}  Qxd3 {[%clk 0:00:07]} 51. Bc7+ {[%clk 0:00:20]}  Kf6 {[%clk 0:00:07]} 52. Bf4 {[%clk 0:00:17]}  g5 {[%clk 0:00:06]} 53. hxg5+ {[%clk 0:00:16]}  hxg5 {[%clk 0:00:06]} 54. Bc1 {[%clk 0:00:16]}  f2+ {[%clk 0:00:06]} 55. Kxf2 {[%clk 0:00:14]}  Qxh3 {[%clk 0:00:05]} 56. Be3 {[%clk 0:00:15]}  Kf5 {[%clk 0:00:05]} 57. a4 {[%clk 0:00:15]}  g4 {[%clk 0:00:05]} 58. a5 {[%clk 0:00:15]}  Qf3+ {[%clk 0:00:06]} 59. Kg1 {[%clk 0:00:14]}  Qxe3+ {[%clk 0:00:06]} 60. Kg2 {[%clk 0:00:15]}  Qxb3 {[%clk 0:00:07]} 61. a6 {[%clk 0:00:15]}  Qa3 {[%clk 0:00:07]} 62. a7 {[%clk 0:00:16]}  Qxa7 {[%clk 0:00:07]} 63. Kg3 {[%clk 0:00:17]}  Qe3+ {[%clk 0:00:08]} 64. Kh4 {[%clk 0:00:17]}  Qh3# {[%clk 0:00:07]} 0-1


[Site "https://www.chess.com"]

[Event "Titled Tuesday Blitz November 29 Late 2022"]
[White "Ehlvest, Jaan"]
[Black "Rian, Kapriaga"]
[WhiteFideId "4500016"]
[BlackFideId "7103263"]
[WhiteElo "2430"]
[BlackElo "2337"]
[Result "1-0"]
[Round "02"]
[TimeControl "180+1"]
[Date "2022.11.30"]
[WhiteClock "0:01:59"]
[BlackClock "0:00:16"]

1. e4 {[%clk 0:03:00]}  c6 {[%clk 0:02:59]} 2. d4 {[%clk 0:02:59]}  d5 {[%clk 0:02:59]} 3. exd5 {[%clk 0:02:59]}  cxd5 {[%clk 0:02:59]} 4. Bd3 {[%clk 0:03:00]}  Nc6 {[%clk 0:02:59]} 5. c3 {[%clk 0:03:00]}  Qc7 {[%clk 0:02:58]} 6. h3 {[%clk 0:02:57]}  Nf6 {[%clk 0:02:52]} 7. Nf3 {[%clk 0:02:57]}  e5 {[%clk 0:02:44]} 8. dxe5 {[%clk 0:02:55]}  Nxe5 {[%clk 0:02:44]} 9. O-O {[%clk 0:02:53]}  Nxd3 {[%clk 0:02:36]} 10. Qxd3 {[%clk 0:02:54]}  Be7 {[%clk 0:02:36]} 11. Bg5 {[%clk 0:02:49]}  Be6 {[%clk 0:02:21]} 12. Nbd2 {[%clk 0:02:47]}  O-O {[%clk 0:02:20]} 13. Rfe1 {[%clk 0:02:42]}  h6 {[%clk 0:02:19]} 14. Bh4 {[%clk 0:02:40]}  Rfe8 {[%clk 0:02:18]} 15. Nd4 {[%clk 0:02:38]}  Qf4 {[%clk 0:01:57]} 16. Bg3 {[%clk 0:02:29]}  Qg5 {[%clk 0:01:48]} 17. Re5 {[%clk 0:02:28]}  Qg6 {[%clk 0:01:30]} 18. Qxg6 {[%clk 0:02:26]}  fxg6 {[%clk 0:01:30]} 19. Rxe6 {[%clk 0:02:26]}  Kf7 {[%clk 0:01:27]} 20. Rae1 {[%clk 0:02:23]}  Bc5 {[%clk 0:01:27]} 21. Rxe8 {[%clk 0:02:20]}  Rxe8 {[%clk 0:01:25]} 22. Rxe8 {[%clk 0:02:18]}  Kxe8 {[%clk 0:01:25]} 23. Be5 {[%clk 0:02:15]}  Kf7 {[%clk 0:01:25]} 24. Kf1 {[%clk 0:02:15]}  Nd7 {[%clk 0:01:23]} 25. Bg3 {[%clk 0:02:14]}  a6 {[%clk 0:01:23]} 26. Ke2 {[%clk 0:02:14]}  Nf6 {[%clk 0:01:19]} 27. f3 {[%clk 0:02:12]}  Bxd4 {[%clk 0:01:13]} 28. cxd4 {[%clk 0:02:11]}  Nd7 {[%clk 0:01:11]} 29. Nb1 {[%clk 0:02:11]}  Ke6 {[%clk 0:01:10]} 30. Nc3 {[%clk 0:02:11]}  Nb6 {[%clk 0:01:09]} 31. b3 {[%clk 0:02:11]}  Nd7 {[%clk 0:01:04]} 32. Kd3 {[%clk 0:02:11]}  g5 {[%clk 0:01:03]} 33. a4 {[%clk 0:02:08]}  h5 {[%clk 0:00:56]} 34. Bc7 {[%clk 0:02:06]}  b6 {[%clk 0:00:44]} 35. g4 {[%clk 0:02:06]}  h4 {[%clk 0:00:41]} 36. Bd8 {[%clk 0:02:04]}  a5 {[%clk 0:00:16]} 37. Bxg5 {[%clk 0:01:59]} 1-0


[Site "https://www.chess.com"]

[Event "Titled Tuesday Blitz November 29 Late 2022"]
[White "Fernandez Siles, Luis"]
[Black "Mladenovic, Stefan"]
[WhiteFideId "2209420"]
[BlackFideId "942227"]
[WhiteElo "2186"]
[BlackElo "2337"]
[Result "0-1"]
[Round "02"]
[TimeControl "180+1"]
[Date "2022.11.30"]
[WhiteClock "0:00:10"]
[BlackClock "0:00:44"]

1. d4 {[%clk 0:03:00]}  Nf6 {[%clk 0:02:55]} 2. c4 {[%clk 0:03:00]}  e6 {[%clk 0:02:51]} 3. Nf3 {[%clk 0:03:00]}  b6 {[%clk 0:02:44]} 4. a3 {[%clk 0:03:00]}  Bb7 {[%clk 0:02:42]} 5. Nc3 {[%clk 0:02:59]}  d5 {[%clk 0:02:43]} 6. cxd5 {[%clk 0:02:58]}  exd5 {[%clk 0:02:43]} 7. Bg5 {[%clk 0:02:55]}  Be7 {[%clk 0:02:42]} 8. e3 {[%clk 0:02:53]}  Nbd7 {[%clk 0:02:42]} 9. b4 {[%clk 0:02:44]}  O-O {[%clk 0:02:39]} 10. Bd3 {[%clk 0:02:43]}  c5 {[%clk 0:02:39]} 11. bxc5 {[%clk 0:02:40]}  bxc5 {[%clk 0:02:40]} 12. Rb1 {[%clk 0:02:40]}  Bc6 {[%clk 0:02:20]} 13. O-O {[%clk 0:02:35]}  c4 {[%clk 0:02:17]} 14. Bc2 {[%clk 0:02:34]}  Bxa3 {[%clk 0:02:16]} 15. Ne5 {[%clk 0:02:27]}  Qc7 {[%clk 0:02:14]} 16. Nxd7 {[%clk 0:02:15]}  Nxd7 {[%clk 0:02:10]} 17. Qh5 {[%clk 0:02:12]}  g6 {[%clk 0:02:10]} 18. Qh6 {[%clk 0:02:06]}  Rfb8 {[%clk 0:02:07]} 19. f4 {[%clk 0:01:49]}  Bf8 {[%clk 0:02:03]} 20. Qh4 {[%clk 0:01:48]}  Rxb1 {[%clk 0:02:02]} 21. Bxb1 {[%clk 0:01:43]}  Qa5 {[%clk 0:01:53]} 22. Nd1 {[%clk 0:01:07]}  Bg7 {[%clk 0:01:39]} 23. f5 {[%clk 0:01:03]}  Nf8 {[%clk 0:01:24]} 24. f6 {[%clk 0:00:51]}  Bh8 {[%clk 0:01:24]} 25. Bh6 {[%clk 0:00:40]}  Qd2 {[%clk 0:01:14]} 26. Bg7 {[%clk 0:00:38]}  Bxg7 {[%clk 0:01:07]} 27. fxg7 {[%clk 0:00:37]}  Ne6 {[%clk 0:00:58]} 28. Qf6 {[%clk 0:00:36]}  Be8 {[%clk 0:00:54]} 29. Qe7 {[%clk 0:00:12]}  Kxg7 {[%clk 0:00:49]} 30. Qf6+ {[%clk 0:00:12]}  Kg8 {[%clk 0:00:49]} 31. Kh1 {[%clk 0:00:11]}  Rb8 {[%clk 0:00:47]} 32. Nf2 {[%clk 0:00:10]}  Qe2 {[%clk 0:00:44]} 33. Ng4 {[%clk 0:00:10]}  Qxg4 {[%clk 0:00:44]} 0-1


[Site "https://www.chess.com"]

[Event "Titled Tuesday Blitz November 29 Late 2022"]
[White "Figorito, Nick"]
[Black "Hjartarson, Johann"]
[WhiteFideId "30923689"]
[BlackFideId "2300044"]
[WhiteElo "2344"]
[BlackElo "2458"]
[Result "0-1"]
[Round "02"]
[TimeControl "180+1"]
[Date "2022.11.30"]
[WhiteClock "0:00:11"]
[BlackClock "0:01:17"]

1. Nf3 {[%clk 0:03:00]}  Nf6 {[%clk 0:02:59]} 2. g3 {[%clk 0:03:01]}  b5 {[%clk 0:02:58]} 3. Bg2 {[%clk 0:03:01]}  Bb7 {[%clk 0:02:58]} 4. O-O {[%clk 0:03:02]}  e6 {[%clk 0:02:58]} 5. b3 {[%clk 0:03:02]}  d6 {[%clk 0:02:57]} 6. Bb2 {[%clk 0:03:02]}  Nbd7 {[%clk 0:02:56]} 7. d3 {[%clk 0:03:03]}  Be7 {[%clk 0:02:56]} 8. Nbd2 {[%clk 0:03:03]}  O-O {[%clk 0:02:55]} 9. a4 {[%clk 0:03:04]}  b4 {[%clk 0:02:53]} 10. e4 {[%clk 0:02:58]}  c5 {[%clk 0:02:52]} 11. Qe2 {[%clk 0:02:56]}  e5 {[%clk 0:02:48]} 12. Rfe1 {[%clk 0:02:44]}  g6 {[%clk 0:02:47]} 13. Nf1 {[%clk 0:02:44]}  Nh5 {[%clk 0:02:43]} 14. Ne3 {[%clk 0:02:39]}  Ng7 {[%clk 0:02:42]} 15. Nd2 {[%clk 0:02:33]}  Ne6 {[%clk 0:02:37]} 16. Ndc4 {[%clk 0:02:26]}  Nd4 {[%clk 0:02:32]} 17. Bxd4 {[%clk 0:02:02]}  cxd4 {[%clk 0:02:32]} 18. Nd5 {[%clk 0:02:02]}  Bxd5 {[%clk 0:02:32]} 19. exd5 {[%clk 0:02:03]}  f5 {[%clk 0:02:29]} 20. f4 {[%clk 0:02:02]}  Rc8 {[%clk 0:02:04]} 21. fxe5 {[%clk 0:01:55]}  dxe5 {[%clk 0:02:03]} 22. Nxe5 {[%clk 0:01:46]}  Nxe5 {[%clk 0:02:03]} 23. Qxe5 {[%clk 0:01:47]}  Bf6 {[%clk 0:01:50]} 24. Qe6+ {[%clk 0:01:41]}  Kg7 {[%clk 0:01:50]} 25. Rac1 {[%clk 0:01:24]}  Bg5 {[%clk 0:01:41]} 26. Qe5+ {[%clk 0:01:16]}  Qf6 {[%clk 0:01:38]} 27. Qxf6+ {[%clk 0:00:50]}  Rxf6 {[%clk 0:01:37]} 28. Re7+ {[%clk 0:00:51]}  Rf7 {[%clk 0:01:36]} 29. Rxf7+ {[%clk 0:00:47]}  Kxf7 {[%clk 0:01:36]} 30. Re1 {[%clk 0:00:42]}  Be3+ {[%clk 0:01:35]} 31. Kf1 {[%clk 0:00:40]}  Rxc2 {[%clk 0:01:34]} 32. Re2 {[%clk 0:00:41]}  Rc3 {[%clk 0:01:29]} 33. Rb2 {[%clk 0:00:25]}  Rxd3 {[%clk 0:01:22]} 34. Ke2 {[%clk 0:00:26]}  Rc3 {[%clk 0:01:22]} 35. Bf3 {[%clk 0:00:17]}  Ke7 {[%clk 0:01:20]} 36. h4 {[%clk 0:00:18]}  Kd6 {[%clk 0:01:19]} 37. Ke1 {[%clk 0:00:11]}  d3 {[%clk 0:01:17]} 0-1


[Site "https://www.chess.com"]

[Event "Titled Tuesday Blitz November 29 Late 2022"]
[White "Goncalves, Davi Sulzbacher"]
[Black "Shapiro, Daniel"]
[WhiteFideId "2154510"]
[BlackFideId "2001780"]
[WhiteElo "2182"]
[BlackElo "2322"]
[Result "1-0"]
[Round "02"]
[TimeControl "180+1"]
[Date "2022.11.30"]
[WhiteClock "0:00:46"]
[BlackClock "0:00:06"]

1. Nf3 {[%clk 0:02:57]}  Nf6 {[%clk 0:02:59]} 2. g3 {[%clk 0:02:58]}  d5 {[%clk 0:02:58]} 3. Bg2 {[%clk 0:02:58]}  e6 {[%clk 0:02:59]} 4. O-O {[%clk 0:02:59]}  Be7 {[%clk 0:02:59]} 5. d4 {[%clk 0:02:59]}  O-O {[%clk 0:02:55]} 6. c4 {[%clk 0:02:59]}  c6 {[%clk 0:02:55]} 7. Nbd2 {[%clk 0:02:57]}  b6 {[%clk 0:02:55]} 8. Qc2 {[%clk 0:02:57]}  Ba6 {[%clk 0:02:55]} 9. Rd1 {[%clk 0:02:47]}  Nbd7 {[%clk 0:02:54]} 10. e4 {[%clk 0:02:47]}  dxe4 {[%clk 0:02:37]} 11. Ng5 {[%clk 0:02:41]}  h6 {[%clk 0:02:20]} 12. Ngxe4 {[%clk 0:02:33]}  Qc7 {[%clk 0:02:17]} 13. b3 {[%clk 0:02:30]}  Rad8 {[%clk 0:02:11]} 14. Bb2 {[%clk 0:02:30]}  c5 {[%clk 0:02:08]} 15. dxc5 {[%clk 0:02:12]}  bxc5 {[%clk 0:02:08]} 16. Nc3 {[%clk 0:01:56]}  Bb7 {[%clk 0:02:00]} 17. Nb5 {[%clk 0:01:53]}  Qb8 {[%clk 0:02:00]} 18. Ne4 {[%clk 0:01:38]}  Nxe4 {[%clk 0:01:39]} 19. Bxe4 {[%clk 0:01:39]}  Bxe4 {[%clk 0:01:38]} 20. Qxe4 {[%clk 0:01:39]}  Bf6 {[%clk 0:01:37]} 21. Bxf6 {[%clk 0:01:24]}  Nxf6 {[%clk 0:01:36]} 22. Qe3 {[%clk 0:01:24]}  Qb6 {[%clk 0:01:30]} 23. Nc3 {[%clk 0:01:18]}  Rd4 {[%clk 0:00:59]} 24. Ne2 {[%clk 0:01:06]}  Rxd1+ {[%clk 0:00:47]} 25. Rxd1 {[%clk 0:01:05]}  Rd8 {[%clk 0:00:33]} 26. Rxd8+ {[%clk 0:01:05]}  Qxd8 {[%clk 0:00:33]} 27. Nc3 {[%clk 0:01:05]}  Qd6 {[%clk 0:00:20]} 28. Nb5 {[%clk 0:00:58]}  Qe7 {[%clk 0:00:15]} 29. Qe5 {[%clk 0:00:55]}  a6 {[%clk 0:00:13]} 30. Qc7 {[%clk 0:00:49]}  Kf8 {[%clk 0:00:06]} 31. Qc8+ {[%clk 0:00:46]} 1-0


[Site "https://www.chess.com"]

[Event "Titled Tuesday Blitz November 29 Late 2022"]
[White "Grot, Blazej"]
[Black "Gubajdullin, Alexei"]
[WhiteFideId "21835845"]
[BlackFideId "4141202"]
[WhiteElo "1822"]
[BlackElo "2230"]
[Result "1-0"]
[Round "02"]
[TimeControl "180+1"]
[Date "2022.11.30"]
[WhiteClock "0:00:14"]
[BlackClock "0:00:01"]

1. e4 {[%clk 0:03:00]}  c6 {[%clk 0:02:59]} 2. Nc3 {[%clk 0:02:59]}  d5 {[%clk 0:02:59]} 3. Qe2 {[%clk 0:03:00]}  d4 {[%clk 0:02:57]} 4. Nd1 {[%clk 0:03:00]}  e5 {[%clk 0:02:57]} 5. d3 {[%clk 0:03:00]}  Bb4+ {[%clk 0:02:56]} 6. Bd2 {[%clk 0:03:00]}  Bxd2+ {[%clk 0:02:55]} 7. Qxd2 {[%clk 0:03:01]}  f6 {[%clk 0:02:53]} 8. g3 {[%clk 0:03:01]}  Nh6 {[%clk 0:02:50]} 9. Bg2 {[%clk 0:03:00]}  O-O {[%clk 0:02:49]} 10. f4 {[%clk 0:03:00]}  Qb6 {[%clk 0:02:43]} 11. Nf3 {[%clk 0:02:59]}  Ng4 {[%clk 0:02:42]} 12. fxe5 {[%clk 0:02:18]}  fxe5 {[%clk 0:02:41]} 13. O-O {[%clk 0:02:12]}  Ne3 {[%clk 0:02:39]} 14. Nxe3 {[%clk 0:02:13]}  dxe3 {[%clk 0:02:39]} 15. Qe2 {[%clk 0:02:13]}  Bg4 {[%clk 0:02:39]} 16. b3 {[%clk 0:02:06]}  Na6 {[%clk 0:02:32]} 17. Rae1 {[%clk 0:02:05]}  Nb4 {[%clk 0:02:31]} 18. a3 {[%clk 0:01:55]}  Nxc2 {[%clk 0:02:30]} 19. Qxc2 {[%clk 0:01:53]}  e2+ {[%clk 0:02:28]} 20. Rf2 {[%clk 0:01:54]}  Bxf3 {[%clk 0:02:28]} 21. Bxf3 {[%clk 0:01:51]}  Rxf3 {[%clk 0:02:27]} 22. Rxe2 {[%clk 0:01:28]}  Raf8 {[%clk 0:02:23]} 23. Kg2 {[%clk 0:01:27]}  Rxf2+ {[%clk 0:02:10]} 24. Rxf2 {[%clk 0:01:28]}  Rxf2+ {[%clk 0:01:58]} 25. Qxf2 {[%clk 0:01:25]}  Qxb3 {[%clk 0:01:57]} 26. Qxa7 {[%clk 0:01:25]}  Kf7 {[%clk 0:01:48]} 27. Qb8 {[%clk 0:01:24]}  Qa2+ {[%clk 0:01:22]} 28. Kf3 {[%clk 0:01:13]}  Qb3 {[%clk 0:01:18]} 29. Kg2 {[%clk 0:00:59]}  Qb5 {[%clk 0:00:45]} 30. Qc7+ {[%clk 0:00:56]}  Ke6 {[%clk 0:00:42]} 31. Qxg7 {[%clk 0:00:48]}  Qxd3 {[%clk 0:00:40]} 32. Qh6+ {[%clk 0:00:47]}  Kd7 {[%clk 0:00:36]} 33. Qxh7+ {[%clk 0:00:47]}  Kc8 {[%clk 0:00:37]} 34. Qf5+ {[%clk 0:00:46]}  Kb8 {[%clk 0:00:27]} 35. Qxe5+ {[%clk 0:00:45]}  Ka8 {[%clk 0:00:26]} 36. h4 {[%clk 0:00:36]}  Qxa3 {[%clk 0:00:25]} 37. h5 {[%clk 0:00:35]}  Qa2+ {[%clk 0:00:20]} 38. Kh3 {[%clk 0:00:35]}  Qb1 {[%clk 0:00:19]} 39. Kh4 {[%clk 0:00:30]}  b5 {[%clk 0:00:17]} 40. h6 {[%clk 0:00:30]}  b4 {[%clk 0:00:16]} 41. Kg5 {[%clk 0:00:20]}  Qh1 {[%clk 0:00:11]} 42. Kg6 {[%clk 0:00:17]}  b3 {[%clk 0:00:10]} 43. h7 {[%clk 0:00:16]}  Ka7 {[%clk 0:00:05]} 44. h8=Q {[%clk 0:00:14]}  Qd1 {[%clk 0:00:01]} 45. Qd4+ {[%clk 0:00:14]} 1-0


[Site "https://www.chess.com"]